fUST/lending_fUST_20251002
["ID","MTS","AMOUNT","RATE_DAILY","PERIOD"]
[388730639,1759339861190,-541.59,0.00020547,2]
[388730640,1759339861200,-500.0,0.00020547,2]
[388730641,1759339861209,-500.0,0.00020547,2]
[388730642,1759339861218,-747.86,0.00020547,2]
[388730643,1759339861231,-619.67,0.00020547,2]
[388730644,1759339861240,-500.0,0.00020547,2]
[388730645,1759339861250,-154.7989169,0.00020547,2]
[388730646,1759339861259,-372.49,0.00020547,2]
[388730647,1759339861271,-1088.66,0.00020547,2]
[388730648,1759339861279,-1596.15,0.00020547,2]
[388730649,1759339861290,-500.0,0.00020547,2]
[388730650,1759339861299,-891.76,0.00020547,2]
[388730651,1759339861309,-975.15,0.00020547,2]
[388730652,1759339861319,-500.0,0.00020547,2]
[388730653,1759339861328,-626.45,0.00020547,2]
[388730654,1759339861337,-782.15,0.00020547,2]
[388730655,1759339861346,-939.17,0.00020547,2]
[388730656,1759339861355,-712.07,0.00020547,2]
[388730657,1759339861364,-500.0,0.00020547,2]
[388730658,1759339861373,-500.0,0.00020547,2]
[388730659,1759339861383,-500.0,0.00020547,2]
[388730660,1759339861392,-699.88,0.00020547,2]
[388730661,1759339861402,-500.0,0.00020547,2]
[388730662,1759339861411,-500.0,0.00020547,2]
[388730663,1759339861420,-500.0,0.00020547,2]
[388730664,1759339861429,-500.0,0.00020547,2]
[388730665,1759339861438,-502.97,0.00020547,2]
[388730666,1759339861448,-757.85,0.00020547,2]
[388730667,1759339861457,-500.0,0.00020547,2]
[388730668,1759339861467,-500.0,0.00020547,2]
[388730669,1759339861476,-644.97,0.00020547,2]
[388730670,1759339861485,-500.0,0.00020547,2]
[388730671,1759339861494,-542.85,0.00020547,2]
[388730672,1759339861504,-551.56,0.00020547,2]
[388730673,1759339861514,-500.0,0.00020547,2]
[388730674,1759339861523,-500.0,0.00020547,2]
[388730675,1759339861532,-1584.59,0.00020547,2]
[388730676,1759339861541,-572.93,0.00020547,2]
[388730677,1759339861550,-646.18,0.00020547,2]
[388730678,1759339861559,-1971.64,0.00020547,2]
[388730679,1759339861568,-500.0,0.00020547,2]
[388730680,1759339861577,-1806.04,0.00020547,2]
[388730681,1759339861585,-500.0,0.00020547,2]
[388730682,1759339861595,-500.0,0.00020547,2]
[388730683,1759339861604,-1015.63,0.00020547,2]
[388730684,1759339861613,-500.0,0.00020547,2]
[388730685,1759339861623,-500.0,0.00020548,2]
[388730686,1759339861632,-151.0,0.00020548,7]
[388730687,1759339861641,-151.0,0.00020548,7]
[388730688,1759339861651,-176.85534,0.00020548,7]
[388730689,1759339861660,-500.0,0.00020548,2]
[388730690,1759339861670,-216.92,0.00020568,2]
[388730691,1759339861679,-1500.0,0.00020568,2]
[388730692,1759339861688,-1000.0,0.00020568,2]
[388730693,1759339861698,-274.79762748,0.00020574,2]
[388730694,1759339861707,-1445.50922,0.000206,2]
[388730695,1759339861716,-1371.19296058,0.0002061,2]
[388730696,1759339861725,-150.0,0.00020711,2]
[388730697,1759339861735,-160.0,0.00020751,2]
[388730698,1759339861744,-160.0,0.00020751,2]
[388730699,1759339861755,-160.0,0.00020751,2]
[388730700,1759339861764,-160.0,0.00020751,2]
[388730701,1759339861774,-160.0,0.00020751,2]
[388730702,1759339861783,-249.05315923,0.0002079,2]
[388730703,1759339861792,-269.74,0.0002079,2]
[388730704,1759339861802,-719.71,0.00020821,2]
[388730705,1759339861811,-500.0,0.00020821,2]
[388730706,1759339861819,-500.0,0.00020821,2]
[388730707,1759339861828,-500.0,0.00020821,2]
[388730708,1759339861837,-500.0,0.00020821,2]
[388730709,1759339861846,-323.40854206,0.00020821,2]
[388730710,1759339861855,-500.0,0.00020821,2]
[388730711,1759339861864,-500.0,0.00020821,2]
[388730712,1759339861873,-500.0,0.00020821,2]
[388730713,1759339861883,-500.0,0.00020821,2]
[388730714,1759339861891,-500.0,0.00020821,2]
[388730715,1759339861900,-500.0,0.00020821,2]
[388730716,1759339861910,-500.0,0.00020821,2]
[388730717,1759339861920,-500.0,0.00020821,2]
[388730718,1759339861929,-500.0,0.00020821,2]
[388730719,1759339861937,-500.0,0.00020821,2]
[388730720,1759339861946,-500.0,0.00020821,2]
[388730721,1759339861955,-915.38,0.00020821,2]
[388730722,1759339861964,-500.0,0.00020821,2]
[388730723,1759339861973,-826.68,0.00020821,2]
[388730724,1759339861982,-500.0,0.00020821,2]
[388730725,1759339861991,-500.0,0.00020821,2]
[388730726,1759339862002,-500.0,0.00020821,2]
[388730727,1759339862011,-549.37,0.00020821,2]
[388730728,1759339862020,-500.0,0.00020821,2]
[388730729,1759339862029,-500.0,0.00020821,2]
[388730730,1759339862038,-500.0,0.00020821,2]
[388730731,1759339862047,-500.0,0.00020821,2]
[388730732,1759339862056,-500.0,0.00020821,2]
[388730733,1759339862065,-883.19,0.00020821,2]
[388730734,1759339862075,-500.0,0.00020821,2]
[388730735,1759339862084,-568.0,0.00020821,2]
[388730736,1759339862093,-500.0,0.00020821,2]
[388730737,1759339862102,-500.0,0.00020821,2]
[388730738,1759339862112,-532.51,0.00020821,2]
[388730739,1759339862121,-500.0,0.00020821,2]
[388730740,1759339862130,-500.0,0.00020821,2]
[388730741,1759339862139,-432.7,0.00020821,2]
[388730742,1759339862149,-500.0,0.00020821,2]
[388730743,1759339862158,-635.03,0.00020821,2]
[388730744,1759339862167,-1123.54,0.00020821,2]
[388730745,1759339862177,-271.92,0.00020821,2]
[388730746,1759339862186,-543.78,0.00020821,2]
[388730747,1759339862196,-500.0,0.00020821,2]
[388730748,1759339862205,-500.0,0.00020821,2]
[388730749,1759339862214,-500.0,0.00020821,2]
[388730750,1759339862224,-547.86,0.00020821,2]
[388730751,1759339862237,-402.78913804,0.00020821,2]
[388730752,1759339862246,-500.0,0.00020821,2]
[388730753,1759339862255,-1058.74,0.00020821,2]
[388730754,1759339862265,-500.0,0.00020821,2]
[388730755,1759339862274,-500.0,0.00020821,2]
[388730756,1759339862284,-500.0,0.00020821,2]
[388730757,1759339862293,-915.85,0.00020821,2]
[388730758,1759339862304,-550.02,0.00020821,2]
[388730759,1759339862314,-500.0,0.00020821,2]
[388730760,1759339862323,-500.0,0.00020821,2]
[388730761,1759339862334,-500.0,0.00020821,2]
[388730762,1759339862343,-500.0,0.00020821,2]
[388730763,1759339862352,-500.0,0.00020821,2]
[388730764,1759339862362,-500.0,0.00020821,2]
[388730765,1759339862371,-500.0,0.00020821,2]
[388730766,1759339862380,-500.0,0.00020821,2]
[388730767,1759339862389,-1001.22,0.00020821,2]
[388730768,1759339862399,-500.0,0.00020821,2]
[388730769,1759339862408,-500.0,0.00020821,2]
[388730770,1759339862417,-706.95,0.00020821,2]
[388730771,1759339862427,-2706.91,0.00020821,2]
[388730772,1759339862437,-500.0,0.00020821,2]
[388730773,1759339862445,-500.0,0.00020821,2]
[388730774,1759339862454,-3018.17,0.00020821,2]
[388730775,1759339862464,-500.0,0.00020821,2]
[388730776,1759339862472,-500.0,0.00020821,2]
[388730777,1759339862481,-500.0,0.00020821,2]
[388730778,1759339862490,-500.0,0.00020821,2]
[388730779,1759339862500,-500.0,0.00020821,2]
[388730780,1759339862509,-500.0,0.00020821,2]
[388730781,1759339862519,-1538.51,0.00020821,2]
[388730782,1759339862529,-500.0,0.00020821,2]
[388730783,1759339862538,-500.0,0.00020821,2]
[388730784,1759339862548,-500.0,0.00020821,2]
[388730785,1759339862557,-518.83,0.00020821,2]
[388730786,1759339862566,-1493.91,0.00020821,2]
[388730787,1759339862576,-500.0,0.00020821,2]
[388730788,1759339862586,-1010.61,0.00020821,2]
[388730789,1759339862596,-500.0,0.00020821,2]
[388730790,1759339862606,-500.0,0.00020821,2]
[388730791,1759339862616,-733.11,0.00020821,2]
[388730792,1759339862625,-1242.72,0.00020821,2]
[388730793,1759339862635,-687.25,0.00020821,2]
[388730794,1759339862644,-500.0,0.00020821,2]
[388730795,1759339862653,-500.0,0.00020821,2]
[388730796,1759339862663,-1123.0,0.00020821,2]
[388730797,1759339862672,-728.01,0.00020821,2]
[388730798,1759339862681,-500.0,0.00020821,2]
[388730799,1759339862691,-1899.75,0.00020821,2]
[388730800,1759339862700,-500.0,0.00020821,2]
[388730801,1759339862710,-528.47,0.00020821,2]
[388730802,1759339862720,-522.71,0.00020821,2]
[388730803,1759339862730,-2068.12,0.00020821,2]
[388730804,1759339862739,-500.0,0.00020821,2]
[388730805,1759339862749,-238.91,0.00020821,2]
[388730806,1759339862758,-151.0,0.00020821,2]
[388730807,1759339862767,-627.31,0.00020821,2]
[388730808,1759339862776,-151.0,0.00020821,2]
[388730809,1759339862786,-151.0,0.00020821,2]
[388730810,1759339862795,-631.17,0.00020821,2]
[388730811,1759339862804,-500.0,0.00020821,2]
[388730812,1759339862813,-500.0,0.00020821,2]
[388730813,1759339862822,-541.59,0.00020821,2]
[388730814,1759339862831,-500.0,0.00020821,2]
[388730815,1759339862841,-500.0,0.00020821,2]
[388730816,1759339862850,-747.86,0.00020821,2]
[388730817,1759339862860,-619.67,0.00020821,2]
[388730818,1759339862869,-500.0,0.00020821,2]
[388730819,1759339862879,-1088.66,0.00020821,2]
[388730820,1759339862889,-1596.15,0.00020821,2]
[388730821,1759339862899,-500.0,0.00020821,2]
[388730822,1759339862908,-891.76,0.00020821,2]
[388730823,1759339862918,-975.15,0.00020821,2]
[388730824,1759339862927,-500.0,0.00020821,2]
[388730825,1759339862937,-626.45,0.00020821,2]
[388730826,1759339862946,-782.15,0.00020821,2]
[388730827,1759339862957,-939.17,0.00020821,2]
[388730828,1759339862967,-712.07,0.00020821,2]
[388730829,1759339862976,-500.0,0.00020821,2]
[388730830,1759339862986,-151.0,0.00020821,2]
[388730831,1759339862996,-500.0,0.00020821,2]
[388730832,1759339863006,-284.10171012,0.00020821,2]
[388730833,1759339863016,-699.88,0.00020821,2]
[388730834,1759339863025,-500.0,0.00020821,2]
[388730835,1759339863034,-500.0,0.00020821,2]
[388730836,1759339863043,-500.0,0.00020821,2]
[388730837,1759339863053,-500.0,0.00020821,2]
[388730838,1759339863062,-502.97,0.00020821,2]
[388730839,1759339863071,-757.85,0.00020821,2]
[388730840,1759339863080,-500.0,0.00020821,2]
[388730841,1759339863090,-500.0,0.00020821,2]
[388730842,1759339863101,-644.97,0.00020821,2]
[388730843,1759339863110,-500.0,0.00020821,2]
[388730844,1759339863120,-542.85,0.00020821,2]
[388730845,1759339863130,-551.56,0.00020821,2]
[388730846,1759339863141,-500.0,0.00020821,2]
[388730847,1759339863151,-500.0,0.00020821,2]
[388730848,1759339863161,-1584.59,0.00020821,2]
[388730849,1759339863170,-572.93,0.00020821,2]
[388730850,1759339863181,-646.18,0.00020821,2]
[388730851,1759339863191,-1971.64,0.00020821,2]
[388730852,1759339863200,-500.0,0.00020821,2]
[388730853,1759339863210,-151.0,0.00020821,2]
[388730854,1759339863219,-1806.04,0.00020821,2]
[388730855,1759339863234,-151.0,0.00020821,2]
[388730856,1759339863243,-500.0,0.00020821,2]
[388730857,1759339863254,-500.0,0.00020821,2]
[388730858,1759339863264,-1015.63,0.00020821,2]
[388730859,1759339863274,-151.0,0.00020821,2]
[388730860,1759339863284,-500.0,0.00020822,2]
[388730861,1759339863293,-420.0,0.00020899,2]
[388730862,1759339863305,-252.85062586,0.000209,2]
[388730863,1759339863315,-298.5814752,0.00020968,2]
[388730864,1759339863324,-1500.0,0.00020968,2]
[388730865,1759339863333,-500.0,0.00020968,2]
[388730866,1759339863343,-1500.0,0.00020968,2]
[388730867,1759339863352,-1004.39253887,0.00020968,2]
[388730868,1759339863362,-1500.0,0.00020968,2]
[388730869,1759339863371,-1500.0,0.00020968,2]
[388730870,1759339863380,-1500.0,0.00020968,2]
[388730871,1759339863390,-1500.0,0.00020968,2]
[388730872,1759339863399,-1500.0,0.00020968,2]
[388730873,1759339863411,-1500.0,0.00020968,2]
[388730874,1759339863421,-1500.0,0.00020968,2]
[388730875,1759339863431,-500.0,0.00020968,2]
[388730876,1759339863442,-630.89369699,0.00020968,2]
[388730877,1759339863453,-1500.0,0.00020968,2]
[388730878,1759339863463,-1500.0,0.00020968,2]
[388730879,1759339863473,-273.30125555,0.00021,2]
[388730880,1759339863482,-4000.0,0.00021,4]
[388730881,1759339863604,-500.0,0.00021021,2]
[388730882,1759339863615,-500.0,0.00021021,2]
[388730883,1759339863625,-1000.0,0.00021021,2]
[388730884,1759339863635,-1000.0,0.00021021,2]
[388730885,1759339863645,-1000.0,0.00021021,2]
[388730886,1759339863654,-1000.0,0.00021021,2]
[388730887,1759339863664,-150.0,0.00021067,2]
[388730888,1759339863673,-1594.36549065,0.00021068,2]
[388730889,1759339863682,-273.33965458,0.00021068,2]
[388730890,1759339863691,-1500.0,0.00021068,2]
[388730891,1759339863700,-500.0,0.00021068,2]
[388730892,1759339863710,-719.71,0.00021095,2]
[388730893,1759339863719,-500.0,0.00021095,2]
[388730894,1759339863728,-500.0,0.00021095,2]
[388730895,1759339863737,-487.38,0.00021095,2]
[388730896,1759339863746,-500.0,0.00021095,2]
[388730897,1759339863757,-500.0,0.00021095,2]
[388730898,1759339863766,-500.0,0.00021095,2]
[388730899,1759339863776,-580.88,0.00021095,2]
[388730900,1759339863785,-500.0,0.00021095,2]
[388730901,1759339863794,-500.0,0.00021095,2]
[388730902,1759339863803,-500.0,0.00021095,2]
[388730903,1759339863812,-500.0,0.00021095,2]
[388730904,1759339863821,-500.0,0.00021095,2]
[388730905,1759339863830,-500.0,0.00021095,2]
[388730906,1759339863839,-500.0,0.00021095,2]
[388730907,1759339863849,-915.38,0.00021095,2]
[388730908,1759339863858,-500.0,0.00021095,2]
[388730909,1759339863867,-826.68,0.00021095,2]
[388730910,1759339863876,-500.0,0.00021095,2]
[388730911,1759339863885,-500.0,0.00021095,2]
[388730912,1759339863895,-500.0,0.00021095,2]
[388730913,1759339863904,-549.37,0.00021095,2]
[388730914,1759339863913,-500.0,0.00021095,2]
[388730915,1759339863923,-500.0,0.00021095,2]
[388730916,1759339863932,-500.0,0.00021095,2]
[388730917,1759339863941,-500.0,0.00021095,2]
[388730918,1759339863950,-500.0,0.00021095,2]
[388730919,1759339863959,-883.19,0.00021095,2]
[388730920,1759339863968,-500.0,0.00021095,2]
[388730921,1759339863978,-568.0,0.00021095,2]
[388730922,1759339863987,-500.0,0.00021095,2]
[388730923,1759339863996,-497.45,0.00021095,2]
[388730924,1759339864007,-500.0,0.00021095,2]
[388730925,1759339864016,-500.0,0.00021095,2]
[388730926,1759339864026,-500.0,0.00021095,2]
[388730927,1759339864034,-635.03,0.00021095,2]
[388730928,1759339864043,-1123.54,0.00021095,2]
[388730929,1759339864053,-543.78,0.00021095,2]
[388730930,1759339864063,-632.5359093,0.00021095,2]
[388730931,1759339864073,-500.0,0.00021095,2]
[388730932,1759339864083,-500.0,0.00021095,2]
[388730933,1759339864093,-547.86,0.00021095,2]
[388730934,1759339864103,-185.73907084,0.00021095,2]
[388730935,1759339864113,-1058.74,0.00021095,2]
[388730936,1759339864122,-500.0,0.00021095,2]
[388730937,1759339864132,-500.0,0.00021095,2]
[388730938,1759339864141,-500.0,0.00021095,2]
[388730939,1759339864153,-915.85,0.00021095,2]
[388730940,1759339864163,-500.0,0.00021095,2]
[388730941,1759339864172,-500.0,0.00021095,2]
[388730942,1759339864182,-500.0,0.00021095,2]
[388730943,1759339864191,-500.0,0.00021095,2]
[388730944,1759339864201,-500.0,0.00021095,2]
[388730945,1759339864210,-500.0,0.00021095,2]
[388730946,1759339864220,-500.0,0.00021095,2]
[388730947,1759339864238,-500.0,0.00021095,2]
[388730948,1759339864248,-1001.22,0.00021095,2]
[388730949,1759339864257,-613.32,0.00021095,2]
[388730950,1759339864267,-706.95,0.00021095,2]
[388730951,1759339864277,-2706.91,0.00021095,2]
[388730952,1759339864286,-500.0,0.00021095,2]
[388730953,1759339864295,-500.0,0.00021095,2]
[388730954,1759339864307,-3018.17,0.00021095,2]
[388730955,1759339864316,-500.0,0.00021095,2]
[388730956,1759339864325,-500.0,0.00021095,2]
[388730957,1759339864335,-500.0,0.00021095,2]
[388730958,1759339864346,-500.0,0.00021095,2]
[388730959,1759339864356,-500.0,0.00021095,2]
[388730960,1759339864364,-380.0,0.00021095,2]
[388730961,1759339864374,-1538.51,0.00021095,2]
[388730962,1759339864383,-500.0,0.00021095,2]
[388730963,1759339864393,-500.0,0.00021095,2]
[388730964,1759339864402,-500.0,0.00021095,2]
[388730965,1759339864411,-1493.91,0.00021095,2]
[388730966,1759339864420,-500.0,0.00021095,2]
[388730967,1759339864430,-1010.61,0.00021095,2]
[388730968,1759339864439,-500.0,0.00021095,2]
[388730969,1759339864448,-500.0,0.00021095,2]
[388730970,1759339864457,-1242.72,0.00021095,2]
[388730971,1759339864466,-687.25,0.00021095,2]
[388730972,1759339864475,-500.0,0.00021095,2]
[388730973,1759339864485,-500.0,0.00021095,2]
[388730974,1759339864494,-1123.0,0.00021095,2]
[388730975,1759339864503,-728.01,0.00021095,2]
[388730976,1759339864513,-500.0,0.00021095,2]
[388730977,1759339864523,-1899.75,0.00021095,2]
[388730978,1759339864533,-500.0,0.00021095,2]
[388730979,1759339864543,-528.47,0.00021095,2]
[388730980,1759339864553,-522.71,0.00021095,2]
[388730981,1759339864562,-2068.12,0.00021095,2]
[388730982,1759339864573,-500.0,0.00021095,2]
[388730983,1759339864583,-151.0,0.00021095,2]
[388730984,1759339864592,-627.31,0.00021095,2]
[388730985,1759339864602,-151.0,0.00021095,2]
[388730986,1759339864613,-151.0,0.00021095,2]
[388730987,1759339864624,-631.17,0.00021095,2]
[388730988,1759339864634,-500.0,0.00021095,2]
[388730989,1759339864643,-500.0,0.00021095,2]
[388730990,1759339864653,-541.59,0.00021095,2]
[388730991,1759339864662,-500.0,0.00021095,2]
[388730992,1759339864671,-747.86,0.00021095,2]
[388730993,1759339864680,-619.67,0.00021095,2]
[388730994,1759339864690,-500.0,0.00021095,2]
[388730995,1759339864699,-1088.66,0.00021095,2]
[388730996,1759339864709,-1596.15,0.00021095,2]
[388730997,1759339864718,-500.0,0.00021095,2]
[388730998,1759339864727,-891.76,0.00021095,2]
[388730999,1759339864736,-975.15,0.00021095,2]
[388731000,1759339864746,-500.0,0.00021095,2]
[388731001,1759339864755,-626.45,0.00021095,2]
[388731002,1759339864765,-782.15,0.00021095,2]
[388731003,1759339864775,-939.17,0.00021095,2]
[388731004,1759339864785,-712.07,0.00021095,2]
[388731005,1759339864794,-500.0,0.00021095,2]
[388731006,1759339864803,-500.0,0.00021095,2]
[388731007,1759339864813,-699.88,0.00021095,2]
[388731008,1759339864822,-500.0,0.00021095,2]
[388731009,1759339864831,-500.0,0.00021095,2]
[388731010,1759339864840,-500.0,0.00021095,2]
[388731011,1759339864850,-500.0,0.00021095,2]
[388731012,1759339864860,-502.97,0.00021095,2]
[388731013,1759339864870,-757.85,0.00021095,2]
[388731014,1759339864880,-500.0,0.00021095,2]
[388731015,1759339864889,-500.0,0.00021095,2]
[388731016,1759339864899,-644.97,0.00021095,2]
[388731017,1759339864908,-500.0,0.00021095,2]
[388731018,1759339864918,-542.85,0.00021095,2]
[388731019,1759339864928,-551.56,0.00021095,2]
[388731020,1759339864938,-500.0,0.00021095,2]
[388731021,1759339864947,-500.0,0.00021095,2]
[388731022,1759339864956,-1584.59,0.00021095,2]
[388731023,1759339864966,-572.93,0.00021095,2]
[388731024,1759339864975,-646.18,0.00021095,2]
[388731025,1759339864985,-1971.64,0.00021095,2]
[388731026,1759339864994,-500.0,0.00021095,2]
[388731027,1759339865004,-1806.04,0.00021095,2]
[388731028,1759339865013,-500.0,0.00021095,2]
[388731029,1759339865022,-500.0,0.00021095,2]
[388731030,1759339865031,-1015.63,0.00021095,2]
[388731031,1759339865041,-500.0,0.00021096,2]
[388731032,1759339865050,-240.86186029,0.00021106,2]
[388731033,1759339865060,-500.0,0.00021116,2]
[388731034,1759339865071,-160.0,0.00021118,2]
[388731035,1759339865080,-153.218577,0.0002124,14]
[388731036,1759339865090,-150.0,0.000213,2]
[388731037,1759339865100,-719.71,0.00021369,2]
[388731038,1759339865109,-500.0,0.00021369,2]
[388731039,1759339865117,-500.0,0.00021369,2]
[388731040,1759339865126,-500.0,0.00021369,2]
[388731041,1759339865135,-500.0,0.00021369,2]
[388731042,1759339865144,-500.0,0.00021369,2]
[388731043,1759339865153,-500.0,0.00021369,2]
[388731044,1759339865163,-500.0,0.00021369,2]
[388731045,1759339865172,-500.0,0.00021369,2]
[388731046,1759339865181,-500.0,0.00021369,2]
[388731047,1759339865190,-500.0,0.00021369,2]
[388731048,1759339865199,-915.38,0.00021369,2]
[388731049,1759339865208,-500.0,0.00021369,2]
[388731050,1759339865217,-826.68,0.00021369,2]
[388731051,1759339865229,-500.0,0.00021369,2]
[388731052,1759339865239,-500.0,0.00021369,2]
[388731053,1759339865248,-500.0,0.00021369,2]
[388731054,1759339865257,-549.37,0.00021369,2]
[388731055,1759339865266,-503.36,0.00021369,2]
[388731056,1759339865277,-500.0,0.00021369,2]
[388731057,1759339865287,-500.0,0.00021369,2]
[388731058,1759339865296,-500.0,0.00021369,2]
[388731059,1759339865306,-500.0,0.00021369,2]
[388731060,1759339865315,-883.19,0.00021369,2]
[388731061,1759339865324,-500.0,0.00021369,2]
[388731062,1759339865334,-568.0,0.00021369,2]
[388731063,1759339865343,-500.0,0.00021369,2]
[388731064,1759339865352,-500.0,0.00021369,2]
[388731065,1759339865362,-500.0,0.00021369,2]
[388731066,1759339865371,-500.0,0.00021369,2]
[388731067,1759339865380,-635.03,0.00021369,2]
[388731068,1759339865389,-1123.54,0.00021369,2]
[388731069,1759339865398,-543.78,0.00021369,2]
[388731070,1759339865408,-500.0,0.00021369,2]
[388731071,1759339865418,-184.12,0.00021369,2]
[388731072,1759339865427,-547.86,0.00021369,2]
[388731073,1759339865436,-1058.74,0.00021369,2]
[388731074,1759339865445,-298.74,0.00021369,2]
[388731075,1759339865455,-500.0,0.00021369,2]
[388731076,1759339865464,-500.0,0.00021369,2]
[388731077,1759339865473,-915.85,0.00021369,2]
[388731078,1759339865482,-292.37,0.00021369,2]
[388731079,1759339865491,-500.0,0.00021369,2]
[388731080,1759339865500,-465.66,0.00021369,2]
[388731081,1759339865510,-500.0,0.00021369,2]
[388731082,1759339865519,-500.0,0.00021369,2]
[388731083,1759339865528,-500.0,0.00021369,2]
[388731084,1759339865537,-500.0,0.00021369,2]
[388731085,1759339865547,-463.89373646,0.00021369,2]
[388731086,1759339865556,-1001.22,0.00021369,2]
[388731087,1759339865566,-706.95,0.00021369,2]
[388731088,1759339865575,-2706.91,0.00021369,2]
[388731089,1759339865584,-500.0,0.00021369,2]
[388731090,1759339865594,-500.0,0.00021369,2]
[388731091,1759339865604,-3018.17,0.00021369,2]
[388731092,1759339865613,-500.0,0.00021369,2]
[388731093,1759339865622,-500.0,0.00021369,2]
[388731094,1759339865632,-500.0,0.00021369,2]
[388731095,1759339865641,-500.0,0.00021369,2]
[388731096,1759339865651,-500.0,0.00021369,2]
[388731097,1759339865660,-1538.51,0.00021369,2]
[388731098,1759339865669,-573.12,0.00021369,2]
[388731099,1759339865678,-500.0,0.00021369,2]
[388731100,1759339865687,-500.0,0.00021369,2]
[388731101,1759339865696,-1493.91,0.00021369,2]
[388731102,1759339865705,-500.0,0.00021369,2]
[388731103,1759339865714,-1010.61,0.00021369,2]
[388731104,1759339865723,-500.0,0.00021369,2]
[388731105,1759339865732,-500.0,0.00021369,2]
[388731106,1759339865741,-1242.72,0.00021369,2]
[388731107,1759339865752,-687.25,0.00021369,2]
[388731108,1759339865761,-500.0,0.00021369,2]
[388731109,1759339865770,-500.0,0.00021369,2]
[388731110,1759339865779,-1123.0,0.00021369,2]
[388731111,1759339865788,-728.01,0.00021369,2]
[388731112,1759339865797,-500.0,0.00021369,2]
[388731113,1759339865807,-1899.75,0.00021369,2]
[388731114,1759339865816,-500.0,0.00021369,2]
[388731115,1759339865824,-528.47,0.00021369,2]
[388731116,1759339865834,-522.71,0.00021369,2]
[388731117,1759339865844,-2068.12,0.00021369,2]
[388731118,1759339865854,-500.0,0.00021369,2]
[388731119,1759339865864,-627.31,0.00021369,2]
[388731120,1759339865873,-631.17,0.00021369,2]
[388731121,1759339865882,-500.0,0.00021369,2]
[388731122,1759339865891,-500.0,0.00021369,2]
[388731123,1759339865900,-541.59,0.00021369,2]
[388731124,1759339866016,-500.0,0.00021369,2]
[388731125,1759339866028,-747.86,0.00021369,2]
[388731126,1759339866038,-619.67,0.00021369,2]
[388731127,1759339866047,-500.0,0.00021369,2]
[388731128,1759339866057,-1088.66,0.00021369,2]
[388731129,1759339866066,-1596.15,0.00021369,2]
[388731130,1759339866075,-596.98,0.00021369,2]
[388731131,1759339866085,-891.76,0.00021369,2]
[388731132,1759339866094,-975.15,0.00021369,2]
[388731133,1759339866104,-500.0,0.00021369,2]
[388731134,1759339866113,-626.45,0.00021369,2]
[388731135,1759339866123,-782.15,0.00021369,2]
[388731136,1759339866132,-939.17,0.00021369,2]
[388731137,1759339866142,-712.07,0.00021369,2]
[388731138,1759339866151,-249.43018183,0.00021369,2]